Cogmind - Beta 17 @@@ ROGUE MODE // 2026.07.10 @ 00:34:37 Player: IsAway Result: Destroyed by S-27 Virus with Autogun Performance ------------- Evolutions (5) 2500 Regions Visited (17) 3400 Robots Destroyed (67) 335 Value Destroyed (2760) 2760 Prototype IDs (43) 860 Alien Tech Used (2) 400 Bonus (1100) 1100 TOTAL SCORE: 11355 Bonus ------- Entered DSFs 500 Aligned with FarCom 300 Met Zhirov 300 Cogmind --------- Core Integrity 0/1000 Matter 272/300 Energy 98/100 System Corruption 0% Temperature Cool (9) Movement Core (50) Location -4/Proximity Caves Parts ------- > --- POWER (2) -------- (None) > --- PROPULSION (4) --- (None) > --- UTILITY (7) ------ Improved Signal Interpreter > --- WEAPON (4) ------- (None) > --- INVENTORY (5) ---- Weight Redist. System Weight Redist. System Improved Kinecellerator Makeshift Hacking Suite Makeshift System Shield Peak State ------------ > --- POWER ------------ Micro Nuclear Core Heavy Antimatter Reactor > --- PROPULSION ------- Advanced Myomer Leg Advanced Myomer Leg Advanced Myomer Leg Xenon Bombardment Thruster > --- UTILITY ---------- Advanced Weight Redist. System Improved Signal Interpreter Advanced ECM Suite Advanced Reaction Control System Makeshift Hacking Suite Advanced Hacking Suite Authchip [Propulsion] > --- WEAPON ----------- Makeshift Hammer > --- INVENTORY -------- Weight Redist. System Weight Redist. System Improved Kinecellerator Makeshift Hacking Suite [Rating: 76] Favorites ----------- Power Ion Engine Engine Ion Engine Power Core Micro Fission Core Reactor Heavy Antimatter Reactor Propulsion Compact Wheel Leg Advanced Myomer Leg Wheel Compact Wheel Hover Unit Hover Unit Flight Unit Xenon Bombardment Thruster Utility Advanced Weight Redist. System Device Advanced Weight Redist. System Storage High-capacity Storage Unit Processor Improved Signal Interpreter Hackware Authchip [Propulsion] Protection Heavy Armor Plating Weapon XL Autogun Array Energy Gun Tesla Rifle Ballistic Gun XL Autogun Array Ballistic Cannon Bore Cannon Launcher Grenade Launcher Special Weapon Mining Laser Impact Weapon Makeshift Hammer Slashing Weapon Greatsword Build | -11 -10 -10 -9 -9 -9 -8 -8 -7 -7 -7 -6 -6 -5 -5 -5 -5 -4 ------- Run | Yrd Mat Min Mat Min Exi Min Mat Fac Low Low Fac DSF Fac Upp Upp Zhi Pro Slots Evolved 10 | . . . 2 . . . 2 2 . . 2 . 2 . . . . Power 1 | . . . . . . . . . . . . . 1 . . . . Propulsion 2 | . . . . . . . . . . . 2 . . . . . . Utility 5 | . . . 2 . . . . 2 . . . . 1 . . . . Weapon 2 | . . . . . . . 2 . . . . . . . . . . Parts Attached 87 | 7 2 2 8 4 2 4 1 4 9 9 6 3 11 2 3 7 3 Power 13 | 1 . . 1 1 . . . 1 2 1 . 2 1 1 1 1 . Engine 6 | 1 . . 1 1 . . . . . 1 . 1 . . 1 . . Core 6 | . . . . . . . . 1 2 . . 1 1 1 . . . Reactor 1 | . . . . . . . . . . . . . . . . 1 . Propulsion 21 | 2 . 2 2 . . 2 . . 3 1 2 . 3 . . 3 1 Treads . | . . . . . . . . . . . . . . . . . . Leg 6 | . . . . . . . . . 1 1 . . 1 . . 3 . Wheel 7 | 2 . 2 . . . 2 . . 1 . . . . . . . . Hover 2 | . . . 2 . . . . . . . . . . . . . . Flight 6 | . . . . . . . . . 1 . 2 . 2 . . . 1 Utility 32 | 2 . . 2 3 2 1 . 3 3 1 4 1 5 . 2 3 . Device 17 | 1 . . 1 1 1 1 . . 2 . 3 1 4 . 1 1 . Storage 3 | 1 . . . 1 1 . . . . . . . . . . . . Processor 6 | . . . 1 1 . . . 2 1 . 1 . . . . . . Hackware 3 | . . . . . . . . . . . . . 1 . 1 1 . Protection 3 | . . . . . . . . 1 . 1 . . . . . 1 . Artifact . | . . . . . . . . . . . . . . . . . . Weapon 21 | 2 2 . 3 . . 1 1 . 1 6 . . 2 1 . . 2 Energy Gun 7 | 2 . . 2 . . 1 . . . . . . 1 . . . 1 Energy Cannon . | . . . . . . . . . . . . . . . . . . Ballistic Gun 5 | . . . . . . . 1 . . 4 . . . . . . . Ballistic Cannon 1 | . . . . . . . . . . . . . . . . . 1 Launcher 1 | . 1 . . . . . . . . . . . . . . . . Special Weapon 5 | . 1 . 1 . . . . . 1 1 . . 1 . . . . Impact Weapon 1 | . . . . . . . . . . . . . . 1 . . . Slashing Weapon 1 | . . . . . . . . . . 1 . . . . . . . Piercing Weapon . | . . . . . . . . . . . . . . . . . . Special Melee Weapon . | . . . . . . . . . . . . . . . . . . Unidentified Prototypes 11 | . . . . . . . . . . 2 . 1 2 . . 6 . Parts Lost 46 | . . 3 6 . . . . 1 5 6 . 4 . 2 3 . 16 Power 9 | . . . 2 . . . . . 2 1 . 1 . . 1 . 2 Propulsion 14 | . . 2 1 . . . . 1 1 1 . 1 . 1 1 . 5 Utility 11 | . . . . . . . . . 2 2 . . . . 1 . 6 Weapon 12 | . . 1 3 . . . . . . 2 . 2 . 1 . . 3 Highest Loss Streak 9 | . . 2 4 . . . . 1 2 3 . 4 . 2 1 . 9 To Critical Strikes 1 | . . . . . . . . . . . . . . . . . 1 Average Backups 12 | 2 5 7 7 7 10 16 18 19 18 16 16 4 4 4 5 4 4 Power 1 | . 1 1 . . 1 2 3 2 1 1 1 1 . 1 1 . . Propulsion 1 | . 2 1 2 2 . 2 1 1 3 3 1 . . . . . . Utility 5 | . . 2 2 4 4 8 8 9 7 7 9 2 2 2 3 3 4 Weapon 2 | . 2 2 1 1 2 3 4 4 4 3 3 . 1 . 1 1 . Tool/Special . | . . . . . . . . . . . . . . . . . . Unused Backups 41 | . . . 2 . 1 2 7 7 5 1 6 4 2 2 . . 2 Power 4 | . . . . . . . 2 1 1 . . . . . . . . Propulsion 4 | . . . 2 . . . 2 . . . . . . . . . . Utility 22 | . . . . . 1 2 2 4 1 1 4 2 2 1 . . 2 Weapon 10 | . . . . . . . 1 2 3 . 2 1 . 1 . . . Tool/Special 1 | . . . . . . . . . . . . 1 . . . . . Average Slot Usage (%) 71 | . 100 97 77 82 77 70 71 68 68 74 67 67 69 77 60 70 47 Engine 4 | . 14 14 8 10 11 11 9 7 . . 6 1 5 5 5 . . Core 3 | . . . . . . . . . 6 4 . 3 4 5 5 5 . Leg 3 | . . . . . . . . . 3 7 10 . . . . 13 15 Wheel 5 | . 28 26 7 . . 5 18 14 8 3 . . . . . . . Hover 3 | . . . 13 22 22 15 . . . . . . . . . . . Flight 2 | . . . . . . . . . . . 2 10 15 15 8 5 2 Device 12 | . 14 14 11 11 11 3 18 7 11 8 7 16 19 29 23 16 5 Storage 6 | . 14 14 11 17 11 11 9 7 7 7 5 . . . . . . Processor 14 | . . . 9 11 11 11 9 14 20 23 20 18 10 5 5 5 5 Hackware 1 | . . . . . . . . . . . . . 2 5 10 16 2 Energy Gun 1 | . 10 7 11 . . 9 . . . . . . 4 3 . . 1 Ballistic Gun 5 | . . . . . . . 8 7 7 13 13 9 . . . . . Special Weapon 1 | . 11 6 . 11 11 4 . . . . . . 1 3 . . . Peak Build Rating 76 | 7 7 7 10 10 13 20 52 63 72 69 54 53 60 63 49 72 76 Average Rating 46 | 5 7 6 7 8 11 13 50 60 66 58 46 46 52 55 44 65 49 On Entrance 33 | . 7 7 7 7 9 13 20 52 61 69 45 52 47 59 43 38 72 Avg Prop Armor Cover (%) 4 | . . . . . . . . . 5 . . 8 . . . 3 2 Naked Turns . | . . . . . . . . . . . . . . . . . . Heaviest Build 77 | 15 15 16 16 14 47 52 62 77 76 62 50 19 26 30 22 30 38 Greatest Support 99 | 32 32 32 26 12 12 41 41 41 35 40 40 23 27 27 24 99 99 Greatest Overweight (x) 3 | . . . 1 1 3 3 1 2 3 3 1 . . 1 1 . . Average Overweight (x) . | . . . . . 1 2 1 1 2 2 . . . . . . . Largest Inventory Capacity 20 | 8 8 8 8 8 20 20 20 20 20 20 20 5 5 5 5 5 5 Average Capacity 14 | 7 8 8 8 8 16 20 20 20 20 20 17 5 5 5 5 5 5 Most Carried 20 | 5 8 8 8 8 18 20 20 20 20 20 19 5 5 5 5 5 5 Average Carried 13 | 2 5 7 7 7 12 19 18 19 19 18 16 4 4 4 5 4 4 Final Capacity 20 | 8 8 8 8 8 20 20 20 20 20 20 5 5 5 5 5 5 5 Final Carried 20 | 5 8 8 8 8 18 19 20 20 20 19 5 5 5 5 5 5 5 Class Distribution -------------------- 40% | Gunner 38% | Mutant 9% | Sprinter 3% | Skirmisher 3% | Hacker-Mutant Dominant Class ---------------- Mutant | -10/Materials Mutant | -10/Mines Mutant | -9/Materials Mutant | -9/Mines Mutant | -9/Exiles Mutant | -8/Mines Skirmisher | -8/Materials Gunner | -7/Factory Gunner | -7/Lower Caves Gunner | -7/Lower Caves Mutant | -6/Factory Derelict-Mutant | -6/DSF Sprinter | -5/Factory Sprinter | -5/Upper Caves Mutant | -5/Upper Caves Hacker-Mutant | -5/Zhirov Mutant | -4/Proximity Caves Resources | -11 -10 -10 -9 -9 -9 -8 -8 -7 -7 -7 -6 -6 -5 -5 -5 -5 -4 ----------- Run | Yrd Mat Min Mat Min Exi Min Mat Fac Low Low Fac DSF Fac Upp Upp Zhi Pro Matter Collected 3555 | 270 3 99 32 . 312 281 80 . 1579 388 . 171 . 110 68 . 162 Remotely . | . . . . . . . . . . . . . . . . . . Salvage Created 2967 | 126 3 49 149 . . 237 126 47 1459 444 . 212 . . . . 115 Parts 147 | 7 4 6 15 . . 7 13 1 68 10 . 12 . . . . 4 Haulers Intercepted . | . . . . . . . . . . . . . . . . . . Recyclers Shooed 1 | . . . . . . 1 . . . . . . . . . . . Parts Field Recycled . | . . . . . . . . . . . . . . . . . . Retrieved Matter . | . . . . . . . . . . . . . . . . . . Parts Self-Destructed 81 | . . . . . . . . . 67 9 . . . . . . 5 Prevented 3 | . . . . . . . . . . 3 . . . . . . . Parts Restored . | . . . . . . . . . . . . . . . . . . Kills | -11 -10 -10 -9 -9 -9 -8 -8 -7 -7 -7 -6 -6 -5 -5 -5 -5 -4 ------- Run | Yrd Mat Min Mat Min Exi Min Mat Fac Low Low Fac DSF Fac Upp Upp Zhi Pro Combat Hostiles Destroyed 59 | . . 7 7 . . . 2 1 25 10 . 2 . . . . 5 Melee 3 | . . . . . . . . . . 1 . . . . . . 2 Guns 41 | . . . 1 . . . 2 1 25 9 . 2 . . . . 1 AOE 13 | . . 7 6 . . . . . . . . . . . . . . Classes Destroyed 14 | 2 1 3 1 . . . 1 1 5 . . . . . . . . Worker 2 | . . 1 . . . 1 . . . . . . . . . . . Tunneler 1 | 1 . . . . . . . . . . . . . . . . . Recycler 4 | 1 . . . . . 3 . . . . . . . . . . . Watcher 1 | . 1 . . . . . . . . . . . . . . . . Swarmer 17 | . . 3 4 . . . . . 3 2 . . . . . . 5 Grunt 21 | . . 4 1 . . . . . 9 6 . 1 . . . . . Brawler 2 | . . . . . . . . . 2 . . . . . . . . Duelist 2 | . . . . . . . . . 1 1 . . . . . . . Sentry 5 | . . . 2 . . . 1 . 2 . . . . . . . . Specialist 3 | . . . . . . . . . 3 . . . . . . . . Hunter 3 | . . . . . . . . . 3 . . . . . . . . Programmer 2 | . . . . . . . . 1 1 . . . . . . . . Heavy 2 | . . . . . . . 1 . . . . 1 . . . . . Behemoth 2 | . . . . . . . . . 1 1 . . . . . . . Best Kill Streak 6 | 2 1 3 6 . . 2 1 1 6 4 . 1 . . . . 4 Combat Bots Only 6 | . . 3 6 . . . 1 1 6 4 . 1 . . . . 4 Max Kills in Single Turn 3 | 1 1 1 3 . . 1 1 1 2 1 . 1 . . . . 1 Gunslinging . | . . . . . . . . . . . . . . . . . . Exploded 3 | . . 1 3 . . . . . . . . . . . . . . Melee 1 | . . . . . . . . . . 1 . . . . . . 1 Uniques/NPCs Destroyed . | . . . . . . . . . . . . . . . . . . Combat | -11 -10 -10 -9 -9 -9 -8 -8 -7 -7 -7 -6 -6 -5 -5 -5 -5 -4 -------- Run | Yrd Mat Min Mat Min Exi Min Mat Fac Low Low Fac DSF Fac Upp Upp Zhi Pro Hostile Shots Fired 490 | . . 29 19 . . . 3 11 74 71 . 29 2 29 38 . 185 Missed 180 | . . 11 5 . . . 1 5 26 19 . 11 1 17 25 . 59 Hits 310 | . . 18 14 . . . 2 6 48 52 . 18 1 12 13 . 126 Melee 2 | . . . . . . . . . 1 1 . . . . . . . Projectile 308 | . . 18 14 . . . 2 6 47 51 . 18 1 12 13 . 126 Critical Strikes 11 | . . 1 . . . . . . . . . 2 . 1 1 . 6 Damage Taken 5548 | . 20 237 272 . . . 9 173 714 991 . 499 17 104 216 . 2296 Core 1342 | . . 47 46 . . . . . 74 161 . 96 . . 87 . 831 Absorbed by Shields 4 | . . . . . . . 4 . . . . . . . . . . Redirected to Shielding 93 | . . . . . . . . . . 93 . . . . . . . Core Remaining (%) 87 | 100 . 81 . . . 88 100 . . 66 . 88 . . . . . Volleys Fired 181 | 2 5 16 9 2 . 19 5 3 51 33 . 21 6 . . . 9 Largest 4 | 2 2 2 2 1 . 1 1 1 1 4 . 2 2 . . . 2 Hottest 140 | 80 140 70 70 100 . 50 60 60 60 80 . 40 85 . . . 129 Shots Fired 272 | 4 9 23 12 2 . 19 5 3 51 86 . 37 7 . . . 14 Gun 232 | 4 3 7 8 . . 19 5 3 51 83 . 37 3 . . . 9 Cannon 5 | . . . . . . . . . . . . . . . . . 5 Launcher 22 | . 2 16 4 . . . . . . . . . . . . . . Special 13 | . 4 . . 2 . . . . . 3 . . 4 . . . . Kinetic 184 | . . . . . . . 5 3 51 83 . 37 . . . . 5 Thermal 19 | . 4 . . 2 . . . . . . . . 4 . . . 9 Explosive 22 | . 2 16 4 . . . . . . . . . . . . . . Electromagnetic 44 | 4 3 7 8 . . 19 . . . . . . 3 . . . . Robot Hit Streak 14 | 2 2 2 5 . . 6 5 3 14 5 . 9 . . . . 8 Robot Miss Streak 4 | 1 . 2 1 . . 3 1 1 4 3 . 2 2 . . . 4 Penetration Max . | . . . . . . . . . . . . . . . . . . Secondary Targets 4 | . . . . . . . . . . 4 . . . . . . . Max Gunslinging Chain 1 | . . . . . . . . . . 1 . . . . . . . Shots Hit Robots 187 | 3 1 3 7 . . 12 3 3 50 59 . 28 . . . . 18 Core Hits 121 | 2 1 13 8 . . 5 4 2 51 21 . 10 . . . . 4 Critical Kills . | . . . . . . . . . . . . . . . . . . Critical Parts Destroyed 1 | . . . . . . . . . . . . . . . . . 1 Critical Strikes 4 | . . . . . . . . . . 1 . . . . . . 3 Burn 2 | . . . . . . . . . . . . . . . . . 2 Smash 1 | . . . . . . . . . . . . . . . . . 1 Sever 1 | . . . . . . . . . . 1 . . . . . . . Melee Attacks 53 | . . . . . . . . . . 9 . 2 . 19 . . 23 Impact 42 | . . . . . . . . . . . . . . 19 . . 23 Slashing 11 | . . . . . . . . . . 9 . 2 . . . . . Piercing . | . . . . . . . . . . . . . . . . . . Sneak Attacks . | . . . . . . . . . . . . . . . . . . Combat Hostiles . | . . . . . . . . . . . . . . . . . . Follow-up Attacks . | . . . . . . . . . . . . . . . . . . Damage Inflicted 7766 | 42 45 829 569 . . 239 191 190 3023 1344 . 652 . . . . 642 Guns 5644 | 42 . 12 65 . . 210 191 190 3023 1101 . 652 . . . . 158 Cannons 62 | . . . . . . . . . . . . . . . . . 62 Explosions 1395 | . 45 817 504 . . 29 . . . . . . . . . . . Melee 662 | . . . . . . . . . . 243 . . . . . . 419 Ramming 3 | . . . . . . . . . . . . . . . . . 3 Kinetic 5219 | . . . . . . . 191 190 3023 1101 . 652 . . . . 62 Thermal 473 | . . 124 162 . . 29 . . . . . . . . . . 158 Explosive 1080 | . 45 693 342 . . . . . . . . . . . . . . Electromagnetic 329 | 42 . 12 65 . . 210 . . . . . . . . . . . Impact 419 | . . . . . . . . . . . . . . . . . 419 Slashing 243 | . . . . . . . . . . 243 . . . . . . . Piercing . | . . . . . . . . . . . . . . . . . . Highest Corruption 1 | . . . . . . . 1 . . . . . . . . . . Average Corruption 1 | . . . . . . . 1 . . . . . . . . . . Corruption Purged . | . . . . . . . . . . . . . . . . . . Corruption Blocked . | . . . . . . . . . . . . . . . . . . Effects 1 | . . . . . . . 1 . . . . . . . . . . Message Errors 1 | . . . . . . . 1 . . . . . . . . . . Overload Shots . | . . . . . . . . . . . . . . . . . . Overflow Damage 293 | . . 4 127 . . . . . . 24 . . . . . . 138 Projectiles . | . . . . . . . . . . . . . . . . . . Explosions 131 | . . 4 127 . . . . . . . . . . . . . . Melee 162 | . . . . . . . . . . 24 . . . . . . 138 Knockbacks 1 | . . . . . . . . . . . . . . . . . 1 Impact 1 | . . . . . . . . . . . . . . . . . 1 Kinetic . | . . . . . . . . . . . . . . . . . . Secondary . | . . . . . . . . . . . . . . . . . . Self-Inflicted Damage 276 | . 20 32 110 . . . . 113 . . . . . . . . 1 Shots 5 | . 1 1 2 . . . . 1 . . . . . . . . . Rammed 1 | . . . . . . . . . . . . . . . . . 1 Targets Rammed 1 | . . . . . . . . . . . . . . . . . 1 Kicked . | . . . . . . . . . . . . . . . . . . Crushed . | . . . . . . . . . . . . . . . . . . Highest Temperature 322 | 36 40 138 26 34 . 56 42 111 278 250 . 11 43 322 . . 10 Average Temperature 70 | 20 21 63 14 18 . 18 22 62 99 101 . 6 21 160 . . 3 Received Heat Transfer 1263 | . . 96 27 . . . . 6 201 132 . 144 . 342 18 . 297 Siege Activations . | . . . . . . . . . . . . . . . . . . Martial Activations . | . . . . . . . . . . . . . . . . . . Shielding Activations . | . . . . . . . . . . . . . . . . . . Robots Disrupted . | . . . . . . . . . . . . . . . . . . Combat Hostiles . | . . . . . . . . . . . . . . . . . . Robots Corrupted 2 | . . . . . . . . . . . . . . . . . 2 Combat Hostiles 2 | . . . . . . . . . . . . . . . . . 2 Parts Fried 5 | . . . . . . 2 . . . . . . . . . . 3 Impact Corruptions 5 | . . . . . . . . . . . . . . . . . 5 Robots Melted . | . . . . . . . . . . . . . . . . . . Combat Hostiles . | . . . . . . . . . . . . . . . . . . Parts Melted 1 | . . 1 . . . . . . . . . . . . . . . Heat Transferred 807 | . . 250 100 . . 50 . . . . . . . . . . 407 Parts Sabotaged . | . . . . . . . . . . . . . . . . . . Parts Stolen . | . . . . . . . . . . . . . . . . . . Parts Stripped . | . . . . . . . . . . . . . . . . . . Power Chain Reactions 1 | . . . . . . 1 . . . . . . . . . . . Alert | -11 -10 -10 -9 -9 -9 -8 -8 -7 -7 -7 -6 -6 -5 -5 -5 -5 -4 ------- Run | Yrd Mat Min Mat Min Exi Min Mat Fac Low Low Fac DSF Fac Upp Upp Zhi Pro Maximum Alert Level 1 | . . 1 1 . . . . . . . . . . . . . . Low Security (%) 89 | 100 100 24 25 100 . 100 100 100 . . 100 100 100 . . . . Level 1 10 | . . 75 74 . . . . . . . . . . . . . . Level 2 . | . . . . . . . . . . . . . . . . . . Level 3 . | . . . . . . . . . . . . . . . . . . Level 4 . | . . . . . . . . . . . . . . . . . . Level 5 . | . . . . . . . . . . . . . . . . . . High Security . | . . . . . . . . . . . . . . . . . . Max Security . | . . . . . . . . . . . . . . . . . . Peak Influence 336 | 10 14 336 252 78 . 11 61 75 . . 30 27 15 . . . . Initial 115 | . . . 115 78 . . . 10 . . 30 . 10 . . . . Average 38 | . 3 254 201 47 . . 14 8 . . 11 10 1 . . . . Influence Increases 2015 | 10 33 436 227 2 . 26 94 75 555 260 5 47 15 15 75 . 140 Destroy 0b10 Robot/C 1180 | . . 140 140 . . . 40 20 500 200 . 40 . . . . 100 Destroy 0b10 Robot/NC 50 | 10 5 5 . . . 20 . . 5 . . 5 . . . . . Destroy Leader 182 | . 2 30 30 . . . 20 10 50 30 . . . . . . 10 Successful Hack 32 | . 13 . 14 . . . . . . . 5 . . . . . . Disable Machine 255 | . . 180 15 . . . 30 30 . . . . . . . . . Destroy Structure 151 | . 13 81 28 2 . 6 4 15 . . . 2 . . . . . Partial Spotted 15 | . . . . . . . . . . . . . 15 . . . . Lose Combat Pursuer 150 | . . . . . . . . . . 30 . . . 15 75 . 30 Influence Decreases 2000 | 10 33 140 321 194 10 26 70 48 532 285 54 27 35 15 75 . 125 Entered New Map 393 | . . . 181 124 10 . . 14 20 15 19 . 10 . . . . Time Decay 1322 | 10 33 110 80 70 . 26 70 34 454 220 35 . 25 15 65 . 75 Lost Part 267 | . . 30 60 . . . . . 40 50 . 27 . . 10 . 50 Lost Ally 18 | . . . . . . . . . 18 . . . . . . . . Squads Dispatched 5 | . 1 . . . . . . 1 . . . 1 2 . . . . Investigation 1 | . . . . . . . . . . . . . 1 . . . . Extermination 2 | . . . . . . . . 1 . . . . 1 . . . . Reinforcement 2 | . 1 . . . . . . . . . . 1 . . . . . Assault . | . . . . . . . . . . . . . . . . . . Garrison . | . . . . . . . . . . . . . . . . . . Intercept . | . . . . . . . . . . . . . . . . . . Searches Triggered . | . . . . . . . . . . . . . . . . . . Construction Impeded . | . . . . . . . . . . . . . . . . . . Haulers Reinforced . | . . . . . . . . . . . . . . . . . . Active Scanning Responses . | . . . . . . . . . . . . . . . . . . Cargo Convoy Interrupts . | . . . . . . . . . . . . . . . . . . Stealth | -11 -10 -10 -9 -9 -9 -8 -8 -7 -7 -7 -6 -6 -5 -5 -5 -5 -4 --------- Run | Yrd Mat Min Mat Min Exi Min Mat Fac Low Low Fac DSF Fac Upp Upp Zhi Pro Distress Signals 1 | . . . . . . . 1 . . . . . . . . . . Communications Jammed . | . . . . . . . . . . . . . . . . . . Distress Signals . | . . . . . . . . . . . . . . . . . . Times Spotted 119 | . 1 7 7 . . . 3 2 26 12 . 4 6 4 20 . 27 Peak Tracking Total 10 | . 2 3 6 . . . 2 1 7 4 . 2 5 3 9 . 10 Tactical Retreats 15 | . . . . . . . . . . 2 . . 2 1 4 . 6 ECM-based Alert Blocks 31 | . . . . . . . . . . . . . 6 . 13 . 12 Traps | -11 -10 -10 -9 -9 -9 -8 -8 -7 -7 -7 -6 -6 -5 -5 -5 -5 -4 ------- Run | Yrd Mat Min Mat Min Exi Min Mat Fac Low Low Fac DSF Fac Upp Upp Zhi Pro Traps Triggered 2 | . . . . . . . 1 1 . . . . . . . . . Indirectly . | . . . . . . . . . . . . . . . . . . Trap Hack Attempts . | . . . . . . . . . . . . . . . . . . Triggered . | . . . . . . . . . . . . . . . . . . Disarmed . | . . . . . . . . . . . . . . . . . . Reprogrammed . | . . . . . . . . . . . . . . . . . . Reused . | . . . . . . . . . . . . . . . . . . Traps Extracted . | . . . . . . . . . . . . . . . . . . Installed . | . . . . . . . . . . . . . . . . . . Triggered . | . . . . . . . . . . . . . . . . . . Machines | -11 -10 -10 -9 -9 -9 -8 -8 -7 -7 -7 -6 -6 -5 -5 -5 -5 -4 ---------- Run | Yrd Mat Min Mat Min Exi Min Mat Fac Low Low Fac DSF Fac Upp Upp Zhi Pro Machines Disabled 21 | . 1 12 1 . . . 2 2 3 . . . . . . . . Max in Single Turn 9 | . 1 9 1 . . . 1 2 2 . . . . . . . . Machines Repaired . | . . . . . . . . . . . . . . . . . . Machines Dismantled . | . . . . . . . . . . . . . . . . . . Machines Sabotaged . | . . . . . . . . . . . . . . . . . . Overloaded Fab Kills . | . . . . . . . . . . . . . . . . . . Hacking | -11 -10 -10 -9 -9 -9 -8 -8 -7 -7 -7 -6 -6 -5 -5 -5 -5 -4 --------- Run | Yrd Mat Min Mat Min Exi Min Mat Fac Low Low Fac DSF Fac Upp Upp Zhi Pro Machines Accessed 23 | . 1 . 3 . 1 . 1 3 . . 1 . 2 1 1 9 . Terminals 7 | . 1 . 2 . . . 1 1 . . 1 . . . 1 . . Fabricators 1 | . . . . . . . . 1 . . . . . . . . . Repair Stations . | . . . . . . . . . . . . . . . . . . Recycling Units 4 | . . . 1 . . . . 1 . . . . 2 . . . . Scanalyzers . | . . . . . . . . . . . . . . . . . . Garrison Access . | . . . . . . . . . . . . . . . . . . Total Hacks 74 | . 3 . 9 . 1 . 2 3 . . 2 . 3 1 2 48 . Successful 65 | . 2 . 6 . 1 . . 3 . . 1 . 1 1 2 48 . Failed 9 | . 1 . 3 . . . 2 . . . 1 . 2 . . . . Catastrophic 2 | . . . . . . . 1 . . . . . 1 . . . . Database Lockouts . | . . . . . . . . . . . . . . . . . . Manual 10 | . 1 . 4 . 1 . 2 . 1 . . . . 1 . . . Terminals 16 | . 3 . 6 . . . 2 1 . . 2 . . . 2 . . Fabricators 1 | . . . . . . . . 1 . . . . . . . . . Repair Stations . | . . . . . . . . . . . . . . . . . . Recycling Units 7 | . . . 3 . . . . 1 . . . . 3 . . . . Scanalyzers . | . . . . . . . . . . . . . . . . . . Garrison Access . | . . . . . . . . . . . . . . . . . . Terminal Hacks 60 | . 2 . 4 . 1 . . 1 . . 1 . . 1 2 48 . Record 38 | . . . . . . . . . . . . . . . 2 36 . Part Schematic 4 | . . . . . . . . . . . . . . . . 4 . Robot Analysis 4 | . . . . . . . . . . . . . . . . 4 . Prototype ID Bank 5 | . . . 1 . . . . . . . . . . . . 4 . Open Door 1 | . . . . . . . . . . . . . . 1 . . . Open DSF 2 | . . . . . . . . 1 . . 1 . . . . . . Branch Access Points 2 | . 1 . 1 . . . . . . . . . . . . . . Emergency Access Points 1 | . . . 1 . . . . . . . . . . . . . . Zone Layout 2 | . 1 . 1 . . . . . . . . . . . . . . Proto ID Catalog 1 | . . . . . 1 . . . . . . . . . . . . Fabricator Hacks 1 | . . . . . . . . 1 . . . . . . . . . Network Status 1 | . . . . . . . . 1 . . . . . . . . . Repair Station Hacks . | . . . . . . . . . . . . . . . . . . Recycling Unit Hacks 4 | . . . 2 . . . . 1 . . . . 1 . . . . Report Inventory 2 | . . . 1 . . . . . . . . . 1 . . . . Retrieve Components 2 | . . . 1 . . . . 1 . . . . . . . . . Scanalyzer . | . . . . . . . . . . . . . . . . . . Garrison Access Hacks . | . . . . . . . . . . . . . . . . . . Unauthorized Hacks . | . . . . . . . . . . . . . . . . . . Terminals . | . . . . . . . . . . . . . . . . . . Fabricators . | . . . . . . . . . . . . . . . . . . Repair Stations . | . . . . . . . . . . . . . . . . . . Recycling Units . | . . . . . . . . . . . . . . . . . . Scanalyzers . | . . . . . . . . . . . . . . . . . . Garrison Access . | . . . . . . . . . . . . . . . . . . Data Cores Recovered . | . . . . . . . . . . . . . . . . . . Used . | . . . . . . . . . . . . . . . . . . Hacking Detections 9 | . 1 . 2 . . . 1 1 . . 1 . 2 . 1 . . Full Trace Events . | . . . . . . . . . . . . . . . . . . Feedback Events . | . . . . . . . . . . . . . . . . . . Feedback Blocked . | . . . . . . . . . . . . . . . . . . Robot Schematics Acquired . | . . . . . . . . . . . . . . . . . . Robots Built . | . . . . . . . . . . . . . . . . . . Authchips . | . . . . . . . . . . . . . . . . . . Time . | . . . . . . . . . . . . . . . . . . Total Robot Build Rating . | . . . . . . . . . . . . . . . . . . Part Schematics Acquired 4 | . . . . . . . . . . . . . . . . 4 . Parts Built . | . . . . . . . . . . . . . . . . . . Authchips . | . . . . . . . . . . . . . . . . . . Time . | . . . . . . . . . . . . . . . . . . Total Part Build Rating . | . . . . . . . . . . . . . . . . . . Part Studies Acquired . | . . . . . . . . . . . . . . . . . . Parts Repaired . | . . . . . . . . . . . . . . . . . . Time . | . . . . . . . . . . . . . . . . . . Parts Recycled . | . . . . . . . . . . . . . . . . . . Recycled Matter . | . . . . . . . . . . . . . . . . . . Retrieved Matter . | . . . . . . . . . . . . . . . . . . Retrieved Components 7 | . . . 6 . . . . 1 . . . . . . . . . Parts Scanalyzed . | . . . . . . . . . . . . . . . . . . Part Schematics Acquired . | . . . . . . . . . . . . . . . . . . Parts Damaged . | . . . . . . . . . . . . . . . . . . Bothacking | -11 -10 -10 -9 -9 -9 -8 -8 -7 -7 -7 -6 -6 -5 -5 -5 -5 -4 ------------ Run | Yrd Mat Min Mat Min Exi Min Mat Fac Low Low Fac DSF Fac Upp Upp Zhi Pro Used RIF Installer . | . . . . . . . . . . . . . . . . . . Robots Hacked . | . . . . . . . . . . . . . . . . . . Non-combat . | . . . . . . . . . . . . . . . . . . Combat . | . . . . . . . . . . . . . . . . . . Robot Hacks Applied . | . . . . . . . . . . . . . . . . . . Relay Couplers Released . | . . . . . . . . . . . . . . . . . . Fabnet Peak Effective % . | . . . . . . . . . . . . . . . . . . Robots Rewired 2 | . . . . . . . . . 2 . . . . . . . . Allies Hacked . | . . . . . . . . . . . . . . . . . . Hacks Repelled . | . . . . . . . . . . . . . . . . . . Allies | -11 -10 -10 -9 -9 -9 -8 -8 -7 -7 -7 -6 -6 -5 -5 -5 -5 -4 -------- Run | Yrd Mat Min Mat Min Exi Min Mat Fac Low Low Fac DSF Fac Upp Upp Zhi Pro Total Allies 2 | . . . . . . . . . 2 . . . . . . . . Largest Group 2 | . . . . . . . . . 2 . . . . . . . . Highest-Rated Group 46 | . . . . . . . . . 46 . . . . . . . . Highest-Rated Ally 30 | . . . . . . . . . 30 . . . . . . . . Total Orders 2 | . . . . . . . . . 2 . . . . . . . . GUARD 2 | . . . . . . . . . 2 . . . . . . . . Ally Attacks 11 | . . . . . . . . . 11 . . . . . . . . Total Damage 254 | . . . . . . . . . 254 . . . . . . . . Kills . | . . . . . . . . . . . . . . . . . . Allies Corrupted . | . . . . . . . . . . . . . . . . . . Allies Melted . | . . . . . . . . . . . . . . . . . . Intel | -11 -10 -10 -9 -9 -9 -8 -8 -7 -7 -7 -6 -6 -5 -5 -5 -5 -4 ------- Run | Yrd Mat Min Mat Min Exi Min Mat Fac Low Low Fac DSF Fac Upp Upp Zhi Pro Active Infowar (turns) 2059 | 16 106 226 164 100 571 5 . . . . 19 109 543 27 82 4 87 Optics 653 | . . . . . . . . . . . 19 95 539 . . . . A.S.S. 64 | . . . . . . . . . . . . 20 44 . . . . Structural 103 | . . . . 90 13 . . . . . . . . . . . . Seismic 1085 | 16 106 226 164 10 558 5 . . . . . . . . . . . ECM 244 | . . . . . . . . . . . . . 44 27 82 4 87 Robot Analysis Total 4 | . . . . . . . . . . . . . . . . 4 . Derelict Logs Recovered 6 | . . . . . . . . . 1 1 . . . 2 1 . 1 Drone Launches . | . . . . . . . . . . . . . . . . . . Drone Recoveries . | . . . . . . . . . . . . . . . . . . Exploration | -11 -10 -10 -9 -9 -9 -8 -8 -7 -7 -7 -6 -6 -5 -5 -5 -5 -4 ------------- Run | Yrd Mat Min Mat Min Exi Min Mat Fac Low Low Fac DSF Fac Upp Upp Zhi Pro Turns Passed 8070 | 63 106 226 164 143 572 613 297 469 1389 1883 112 117 549 385 307 324 351 Spaces Moved 6851 | 43 71 169 183 119 466 244 210 378 875 1050 63 116 781 923 620 290 250 Core 50 | 1 . . . . . . . . . . . 6 . . . . 43 Treads . | . . . . . . . . . . . . . . . . . . Legs 871 | . . . . . . . . . . 413 42 . . . . 209 207 Wheels 2562 | 42 71 169 49 . . 131 210 378 875 637 . . . . . . . Hover 832 | . . . 134 119 466 113 . . . . . . . . . . . Flight 2536 | . . . . . . . . . . . 21 110 781 923 620 81 . Fastest Speed 30 | 50 100 90 56 56 56 115 115 115 105 145 44 40 32 32 30 40 50 Average Speed 97 | 98 100 95 67 76 119 172 115 116 132 168 151 42 33 35 47 97 107 Slowest Speed 236 | 100 100 100 116 116 236 236 115 130 145 205 205 50 40 114 120 120 120 Overloaded Moves 240 | . . . . . . . . . . . . . . . 240 . . Propulsion Burnouts 1 | . . . . . . . . . . . . . . . 1 . . Robots Hopped 8 | . . . . . . . . . . . . 1 5 . 2 . . Potential Cave-ins 13 | . . . . . . . . . . . . . . 13 . . . Cave-ins Triggered . | . . . . . . . . . . . . . . . . . . Teleports 1 | . . . . . . . . . . . . . . . . 1 . Exploration Rate (%) 46 | 3 27 45 16 29 71 38 17 9 90 97 1 94 16 91 80 62 42 Regions Visited 17 Branch Regions 10 Pre-discovered Areas 3 | . . . . . . . . . . . . . . . . 3 . Known Exits Taken 9 | . 1 . 1 . . . . . 1 1 1 . 1 1 1 1 . Unknown Exits Taken 7 | 1 . 1 . 1 1 1 1 1 . . . . . . . . . Scrap Searched 11 | . . . . . . 1 . . 4 2 . . . 2 . . 2 Spaces Dug 28 | . 3 . . 2 . . 2 . . . . 2 . 19 . . . Terrain Destroyed 204 | . 13 107 28 2 . 6 4 14 7 . . 2 . 19 . . 2 Melee 21 | . . . . . . . . . . . . 2 . 19 . . . Projectile 18 | . 3 . . 2 . . 4 . 7 . . . . . . . 2 AOE 165 | . 10 107 28 . . 6 . 14 . . . . . . . . . Terrain Rammed . | . . . . . . . . . . . . . . . . . . Walls Destroyed . | . . . . . . . . . . . . . . . . . . Machines Disabled . | . . . . . . . . . . . . . . . . . . Actions | -11 -10 -10 -9 -9 -9 -8 -8 -7 -7 -7 -6 -6 -5 -5 -5 -5 -4 --------- Run | Yrd Mat Min Mat Min Exi Min Mat Fac Low Low Fac DSF Fac Upp Upp Zhi Pro Total 8057 | 56 88 208 211 165 482 418 271 408 1116 1121 83 164 1054 963 628 328 293 Wait 570 | . 8 17 . 36 . 141 31 4 54 . . 8 240 2 7 17 5 Move 6818 | 42 70 168 182 118 465 243 209 377 874 1049 62 113 770 922 615 289 250 Hop 8 | . . . . . . . . . . . . 1 5 . 2 . . Pick Up 103 | 5 3 2 4 2 11 4 13 10 15 10 5 5 9 4 . . 1 Fast Attach 41 | 7 . 1 5 1 . 2 . . 1 1 1 1 5 . 1 12 3 Attach 57 | . . 2 4 2 1 3 1 2 10 11 6 1 8 4 . 1 1 Detach 25 | . . . 3 1 . 2 1 . 5 4 . 1 2 4 . 2 . Swap 20 | . 2 2 . 1 1 1 . 3 1 1 . 1 3 1 2 1 . Drop 85 | . . . 4 2 4 3 11 9 13 3 9 9 6 5 1 6 . Fire 181 | 2 5 16 9 2 . 19 5 3 51 33 . 21 6 . . . 9 Melee 53 | . . . . . . . . . . 9 . 2 . 19 . . 23 Ram 1 | . . . . . . . . . . . . . . . . . 1 Kick . | . . . . . . . . . . . . . . . . . . Crush . | . . . . . . . . . . . . . . . . . . Escape Stasis . | . . . . . . . . . . . . . . . . . . Rewire 93 | . . . . . . . . . 92 . . 1 . . . . . Trap . | . . . . . . . . . . . . . . . . . . Miscellaneous 2 | . . . . . . . . . . . . . . 2 . . . Route ------- -11/Scrapyard -10/Materials -10/Mines -9/Materials (discovered 4 exits: *Min x2 / Sto x2) -9/Mines -9/Exiles -8/Mines -8/Materials -7/Factory -7/Lower Caves -7/Lower Caves (discovered 2 exits: *Fac / *Zio) -6/Factory (discovered 2 exits: Low / DSF) -6/DSF -5/Factory (discovered 3 exits: *Fac / *Upp x2) -5/Upper Caves -5/Upper Caves -5/Zhirov -4/Proximity Caves History --------- Turn | Location | Event 25 | -11/Scrapyard | Discovered new exit (range 15) 64 | -11/Scrapyard | Entered Materials 81 | -10/Materials | Identified exit to Mines 170 | -10/Materials | Entered Mines 321 | -10/Mines | Build established: Mutant 383 | -10/Mines | Discovered new exit (range 15) 396 | -10/Mines | Entered Materials 396 | -9/Materials | Evolved 2 slots: Utility x2 414 | -9/Materials | Identified exit to Mines 414 | -9/Materials | Identified exit to Storage 473 | -9/Materials | Lost 4 parts (1p1n2w) 560 | -9/Materials | Entered Mines 598 | -9/Mines | Met a Derelict bent on vengeance 700 | -9/Mines | Deemed a non-threat by the Exiles lab entrance 700 | -9/Mines | Discovered new exit (range 6) 703 | -9/Mines | Entered Exiles 722 | -9/Exiles | Met 8R-AWN 731 | -9/Exiles | Met EX-HEX 767 | -9/Exiles | Met EX-DEC 805 | -9/Exiles | Discovered new exit (range 14) 854 | -9/Exiles | Met EX-BIN 862 | -9/Exiles | Aligned with FarCom system 862 | -9/Exiles | Given EX-Vault access code 876 | -9/Exiles | Opened EX-Vault 888 | -9/Exiles | Found XL Autogun Array 933 | -9/Exiles | Warned to stay clear of 0b10 Research branches 1275 | -9/Exiles | Left Exiles lab with XL Autogun Array 1275 | -9/Exiles | Entered Mines 1843 | -8/Mines | Discovered new exit (range 13) 1888 | -8/Mines | Entered Materials 1888 | -8/Materials | Evolved 2 slots: Weapon x2 2162 | -8/Materials | Discovered new exit (range 16) 2183 | -8/Materials | Build established: Skirmisher 2185 | -8/Materials | Entered Factory 2185 | -7/Factory | Evolved 2 slots: Utility x2 2286 | -7/Factory | Identified exit to DSF 2523 | -7/Factory | Build established: Gunner 2601 | -7/Factory | Discovered new exit (range 11) 2654 | -7/Factory | Entered Lower Caves 2718 | -7/Lower Caves | Attracted the attention of an 0b10 outpost 2987 | -7/Lower Caves | Encountered a Warlord checkpoint 3045 | -7/Lower Caves | Spotted B-75 Beast 3073 | -7/Lower Caves | Destroyed B-75 Beast 3442 | -7/Lower Caves | Attracted the attention of an 0b10 checkpoint 3451 | -7/Lower Caves | Learned Factory garrison access intel 3477 | -7/Lower Caves | Acquired the password to a Derelict Tinkerer's latest research 3488 | -7/Lower Caves | Found Prototype Special Weapon 3626 | -7/Lower Caves | Caught by Unaware searching for contraband prototypes 3651 | -7/Lower Caves | Caught by Unaware searching for contraband prototypes 3787 | -7/Lower Caves | Discovered new exit (range 10) 3814 | -7/Lower Caves | Identified exit to Lower Caves 4043 | -7/Lower Caves | Entered another Lower Caves area 4213 | -7/Lower Caves | Encountered a Warlord checkpoint 4513 | -7/Lower Caves | Discovered new exit (range 13) 4529 | -7/Lower Caves | Identified exit to Zion 4955 | -7/Lower Caves | Identified Molecular Deconstructor 5007 | -7/Lower Caves | Spotted B-75 Beast 5032 | -7/Lower Caves | Destroyed B-75 Beast 5060 | -7/Lower Caves | Lost 3 parts (1n1u1w) 5799 | -7/Lower Caves | Discovered new exit (range 15) 5833 | -7/Lower Caves | Build established: Mutant 5836 | -7/Lower Caves | Identified exit to Factory 5926 | -7/Lower Caves | Entered Factory 5926 | -6/Factory | Evolved 2 slots: Propulsion x2 5927 | -6/Factory | Identified exit to Lower Caves 5928 | -6/Factory | Loaded intel: 4 garrison access locations 5982 | -6/Factory | Identified exit to DSF 6038 | -6/Factory | Entered DSF 6074 | -6/DSF | Additional patrols routed to DSF 6095 | -6/DSF | Found Prototype Device 6135 | -6/DSF | Identified Active Sensor Suite 6144 | -6/DSF | Lost 4 parts (1p1n2w) 6151 | -6/DSF | Discovered new exit (range 11) 6155 | -6/DSF | Identified exit to Factory 6155 | -6/DSF | Entered Factory 6155 | -5/Factory | Evolved 2 slots: Power x1, Utility x1 6302 | -5/Factory | Discovered new exit (range 7) 6304 | -5/Factory | Identified exit to Factory 6503 | -5/Factory | Build established: Sprinter 6512 | -5/Factory | Noticed a derelict Sapper rigging charges 6547 | -5/Factory | Discovered new exit (range 2) 6547 | -5/Factory | Identified exit to Upper Caves 6693 | -5/Factory | Discovered exit to Upper Caves (range 5) 6704 | -5/Factory | Entered Upper Caves 6753 | -5/Upper Caves | Spotted B-75 Beast 6807 | -5/Upper Caves | Encountered a Warlord checkpoint 6901 | -5/Upper Caves | Identified exit to Upper Caves 7089 | -5/Upper Caves | Entered another Upper Caves area 7102 | -5/Upper Caves | Learned Factory interactive machine intel 7389 | -5/Upper Caves | Discovered new exit (range 10) 7395 | -5/Upper Caves | Identified exit to Zhirov 7396 | -5/Upper Caves | Entered Zhirov 7398 | -5/Zhirov | Discovered new exit (range 3) 7404 | -5/Zhirov | Identified exit to Proximity Caves 7410 | -5/Zhirov | Met Zhirov 7536 | -5/Zhirov | Learned location of Quarantine (-3) 7536 | -5/Zhirov | Learned location of Testing (-2) 7536 | -5/Zhirov | Learned location of Command (-1) 7548 | -5/Zhirov | Zhirov requested help retrieving the SGEMP Prototype 7575 | -5/Zhirov | Found Alien Artifact 7575 | -5/Zhirov | Identified Transdimensional Reconstructor 7575 | -5/Zhirov | Warped through subspace 7640 | -5/Zhirov | Found Alien Artifact 7640 | -5/Zhirov | Identified Integrated Dissipator 7640 | -5/Zhirov | Installed Integrated Dissipator, increased core heat dissipation (+20) 7720 | -5/Zhirov | Entered Proximity Caves 7808 | -4/Proximity Caves | Lost 7 parts (1p1n5u) 7948 | -4/Proximity Caves | Attracted the attention of an 0b10 checkpoint 7950 | -4/Proximity Caves | Learned Research terminal intel 8044 | -4/Proximity Caves | Core integrity fell below 50% 8068 | -4/Proximity Caves | Core integrity fell below 20% 8071 | -4/Proximity Caves | Destroyed by S-27 Virus with Autogun Last Messages --------------- Lgt. Nuclear Core fries itself beyond repair. HV Slug penetrates Y-64 Sentinel. HV Slug penetrates Wall. VTOL Module fries itself beyond repair. Bore Cannon destroyed. G-73 Enforcer suffers critical hit (Burn). Hvy. Antimatter Reactor destroyed. Hvy. Beamcaster destroyed. Penetrated by Slug. Field Propulsion Drive destroyed. Adv. Myomer Leg destroyed. Adv. ECM Suite destroyed. Penetrated by Slug. Critical hit (Destroy). Adv. Myomer Leg destroyed. Mak. Hammer destroyed. Slug penetrates Wall. Slammed into S-27 Virus. Penetrated by Slug. [Achievement: 10k Club] Map ----- +----------------------------------------------------+ | ?????????????????????????????????????????????????? | | ?????????????????????????????????????????????????? | | ?????????????????????????????????????????????????? | | ?????????????????????????????????????????????????? | | ?????????????????????????????????????????????????? | | ?????????????????????????????????????????????????? | | ?????????????????????????????????????????????????? | | ?????????????????????????????????????????????????? | | ?????????????????????????????????????????????????? | | ?????????????????????????????????????????????????? | | ?????????????????????????????????????????????????? | | ?????????????????????????????????????????????????? | | ?????????????????????????????????????????????????? | | ?????????????????????????????????????????????????? | | ?###?????????????????????????????????????????????? | | ## #####???????????????##??????####?????###??????? | | # #?????????????? #??????# #???## ##?????? | | ! #????????????? #??????# #???# ##????? | | ##????????????? #???????# ##### #????? | | #####?###?????? #???????## ## ##???? | | ###### ###"#####?# #?####### ##??? | | #### ## #?# s #??? | | ## #?# s #???? | | ### ##?# ss ### ##???? | | #?## ##?## ### ##??# ##????? | | #??# ## #### @ ### ##????# #?????? | | ##??# ## ##; ## #??????##?????? | | #???# # ## #?????????????? | | #???## #?????????????? | | #????# ##?????????????? | | # #???# #### % Y ###??????????????? | | ## #?# ##?## ggg #????????????????? | | ### ## $ ####??# % #####????????????? | | ?## ### ##???### # ##???????????? | | ## #?## ##??## ### g # ##??????????? | | # #??## ???## ### % # #??????????? | | # ######??## ## ##?????????? | | # ##?## # %;##### ##????????? | | ### #?## ##### ##???????? | | #??## ## #???????? | | ## ##??## ### #???????? | | ?## #### ##### ##?# #??????? | | #?####??## ## #??# #?????? | | ?????????# #?? ???? | | ?????????# #?? ???? | | ?????????# ## ????? | | ?????????## ### ????? | | ??????????# #?## ## ##### ????? | | ??????????# ??## ##? ##?????????? | | ??????????## ??## #?? #??????????? | +----------------------------------------------------+ Best States ------------- Heat Dissipation 60 Energy Generation 38 Energy Capacity 400 Matter Stores 300 Matter Capacity 300 Sight Range 20 Robot Scan Range 20 Terrain Scan Density 10 ECM Strength 2 Additional Mass Support 9 Armor Coverage 600 Weapon Shielding 66 Weapon Cycling 15 Evasion (%) 76 Targeting Accuracy 8 Armor Integrity Analysis 30 Kinecelleration 40 Offensive Hacking 25 Authchip Count 1 Item Schematics ----------------- Assault Drone Bay | -5/Zhirov | Free Exp. Heat Sink | -5/Zhirov | Free Exp. Optical Array | -5/Zhirov | Free Imp. Arc Thrower | -5/Zhirov | Free Robot Schematics ------------------ None Fabricated ------------ Nothing Repaired ---------- Nothing Studied --------- None Alien Tech Used ----------------- Transdimensional Reconstructor Integrated Dissipator Achievements -------------- 10k Club Alien Tech Armchair Analyst Dodgeball, But With Guns Explorer I Spy Some Acronyms Are Better Than Others Subspace Traveler The Science Guy root@ Challenges ------------ None Game ------ Seed SuperquantumAluminumSink Manual? 0 Play Time 02:47:49 Cumulative 21.8 hours Start 2026.07.09 @ 21:13:45 End 2026.07.10 @ 00:34:37 Sessions 1 Manual Loads 0 Difficulty Rogue Special Mode None Game No. 29 Rogue 29 Adventurer 0 Explorer 0 Win Type - Total 0 Types 0/0/0/0/0/0/0/0/0/0 Lore% 21 Gallery% 18 Achievement% 17 Wizard Run 0 Options --------- Layout 1 ASCII 0 Keyboard 0 Movement Mouse Keybinds 0 Fullscreen 1 Font 18/SmallcapsGlow Map View 51x41 Zoom Use 0% Tactical HUD 0 Map Filters NONE Filters NONE Steam 1 RUN: 296694d2-f7c5-4d58-847c-69137ed2de19